fUSD/lending_fUSD_20260528
["ID","MTS","AMOUNT","RATE_DAILY","PERIOD"]
[423196317,1779919129000,-632401.85312277,0.000429,120]
[423196332,1779919129000,-336.92481991,0.00043,120]
[423196330,1779919129000,-2262.75793405,0.00043,30]
[423196327,1779919129000,-1000.0,0.00043,120]
[423196329,1779919129000,-40000.0,0.00043,30]
[423196328,1779919129000,-10000.0,0.00043,30]
[423196325,1779919129000,-207.45307997,0.00042999,30]
[423196324,1779919129000,-230.13201345,0.00042999,30]
[423196326,1779919129000,-1000.0,0.00043,120]
[423196333,1779919129000,-10000.0,0.00043,120]
[423196322,1779919129000,-1000.0,0.00042999,120]
[423196319,1779919129000,-218.4438059,0.00042936,120]
[423196321,1779919129000,-330.0,0.00042998,106]
[423196320,1779919129000,-368.14082493,0.0004299,60]
[423196318,1779919129000,-391.2,0.000429,120]
[423196323,1779919129000,-1061.4593838,0.00042999,120]
[423196331,1779919129000,-1000.0,0.00043,30]
[423196337,1779919129000,-500.0,0.00043,120]
[423196338,1779919129000,-158.61633843,0.00043,120]
[423196351,1779919129000,-881221.14011466,0.00043,120]
[423196350,1779919129000,-1103889.0,0.00043,120]
[423196347,1779919129000,-1455.2,0.00043,120]
[423196348,1779919129000,-4166.42527372,0.00043,120]
[423196349,1779919129000,-1876.85156971,0.00043,120]
[423196346,1779919129000,-6454.1,0.00043,30]
[423196334,1779919129000,-644.78913361,0.00043,120]
[423196344,1779919129000,-1517.46663176,0.00043,120]
[423196343,1779919129000,-2059.68298225,0.00043,120]
[423196341,1779919129000,-643.78,0.00043,120]
[423196339,1779919129000,-12879.55999718,0.00043,120]
[423196340,1779919129000,-2400.0,0.00043,120]
[423196336,1779919129000,-183.31425844,0.00043,120]
[423196335,1779919129000,-135691.47724359,0.00043,120]
[423196342,1779919129000,-1199.0,0.00043,120]
[423196345,1779919129000,-1407.21803576,0.00043,120]
[423196354,1779919327000,150.0,0.00028,120]
[423196355,1779919328000,150.0,0.000252,120]
[423196356,1779919328000,227.14,0.000252,120]
[423196361,1779919466000,-316.918357,9.469e-05,2]
[423196362,1779919466000,-250.0,9.517e-05,2]
[423196363,1779919466000,-150.0,9.541e-05,2]
[423196365,1779919466000,-150.0,9.731e-05,2]
[423196367,1779919466000,-300.0,9.834e-05,2]
[423196366,1779919466000,-150.0,9.834e-05,2]
[423196369,1779919466000,-253.75986218,9.835e-05,2]
[423196368,1779919466000,-209.43991175,9.835e-05,2]
[423196370,1779919466000,-500.0,9.835e-05,2]
[423196371,1779919466000,-500.0,9.835e-05,2]
[423196373,1779919466000,-500.0,9.835e-05,2]
[423196372,1779919466000,-500.0,9.835e-05,2]
[423196374,1779919466000,-500.0,9.835e-05,2]
[423196376,1779919466000,-500.0,9.835e-05,2]
[423196364,1779919466000,-150.0,9.635e-05,2]
[423196377,1779919466000,-500.0,9.835e-05,2]
[423196390,1779919466000,-488.69312743,9.835e-05,2]
[423196375,1779919466000,-500.0,9.835e-05,2]
[423196389,1779919466000,-256.79076913,9.835e-05,2]
[423196386,1779919466000,-500.0,9.835e-05,2]
[423196388,1779919466000,-204.83958401,9.835e-05,2]
[423196384,1779919466000,-500.0,9.835e-05,2]
[423196387,1779919466000,-500.0,9.835e-05,2]
[423196382,1779919466000,-500.0,9.835e-05,2]
[423196383,1779919466000,-500.0,9.835e-05,2]
[423196381,1779919466000,-500.0,9.835e-05,2]
[423196380,1779919466000,-500.0,9.835e-05,2]
[423196379,1779919466000,-481.1582266,9.835e-05,2]
[423196378,1779919466000,-500.0,9.835e-05,2]
[423196385,1779919466000,-500.0,9.835e-05,2]
[423196407,1779919467000,-250.0,0.00010442,2]
[423196401,1779919467000,-152.71,0.0001014,2]
[423196406,1779919467000,-500.0,0.00010442,2]
[423196405,1779919467000,-4037.08279602,0.00010442,2]
[423196404,1779919467000,-802.44396179,0.00010262,2]
[423196403,1779919467000,-227.0,0.00010262,2]
[423196402,1779919467000,-200.0,0.00010243,2]
[423196399,1779919467000,-178.23,0.00010073,2]
[423196393,1779919467000,-248.50846616,9.835e-05,2]
[423196397,1779919467000,-1898.33,0.00010071,2]
[423196398,1779919467000,-2000.0,0.00010071,2]
[423196396,1779919467000,-221.19152795,0.0001,2]
[423196395,1779919467000,-150.0,9.836e-05,2]
[423196394,1779919467000,-172343.7596761,9.836e-05,2]
[423196392,1779919467000,-1200.0,9.835e-05,2]
[423196391,1779919467000,-181.0,9.835e-05,2]
[423196409,1779919467000,-152.71,0.00010478,2]
[423196400,1779919467000,-164.04,0.00010076,2]
[423196408,1779919467000,-18648.0,0.00010469,2]
[423196417,1779919467000,-2616.81,0.00010595,2]
[423196410,1779919467000,-1069.31,0.0001048,2]
[423196411,1779919467000,-999.99,0.0001048,2]
[423196426,1779919467000,-255.0,0.00010817,2]
[423196429,1779919467000,-250.0,0.0001082,2]
[423196427,1779919467000,-420.0,0.00010817,2]
[423196428,1779919467000,-1680.0,0.00010818,2]
[423196425,1779919467000,-152.71,0.00010816,2]
[423196424,1779919467000,-1451.04,0.00010791,2]
[423196423,1779919467000,-628.80003031,0.00010777,2]
[423196422,1779919467000,-160.0,0.00010719,2]
[423196420,1779919467000,-150.99,0.00010595,2]
[423196421,1779919467000,-16134.96,0.00010703,2]
[423196412,1779919467000,-8971.0,0.0001049,2]
[423196415,1779919467000,-595.52,0.00010514,2]
[423196414,1779919467000,-500.0,0.00010503,2]
[423196413,1779919467000,-9999.99,0.00010503,2]
[423196419,1779919467000,-299.99,0.00010595,2]
[423196418,1779919467000,-24999.99,0.00010595,2]
[423196416,1779919467000,-4292.13,0.00010514,2]
[423196437,1779919468000,-152.71,0.00011154,2]
[423196446,1779919468000,-2919.98,0.00011671,2]
[423196444,1779919468000,-1485.14,0.00011617,2]
[423196443,1779919468000,-151.0,0.000115,2]
[423196442,1779919468000,-152.71,0.00011492,2]
[423196441,1779919468000,-2221.3,0.00011413,2]
[423196439,1779919468000,-2000.0,0.0001133,2]
[423196440,1779919468000,-151.0,0.000114,2]
[423196447,1779919468000,-457.1,0.00011671,2]
[423196436,1779919468000,-2221.3,0.00011134,2]
[423196433,1779919468000,-150.0,0.00010959,2]
[423196435,1779919468000,-8345.42693925,0.00011099,2]
[423196434,1779919468000,-4308.07066248,0.00011003,2]
[423196430,1779919468000,-6212.0,0.00010835,2]
[423196432,1779919468000,-4138.8,0.00010959,2]
[423196431,1779919468000,-198.0,0.00010957,2]
[423196438,1779919468000,-155.01,0.00011251,2]
[423196445,1779919468000,-208.97895572,0.00011666,2]
[423196448,1779919468000,-2221.3,0.00011691,2]
[423196463,1779919468000,-1891.77931548,0.00012178,2]
[423196450,1779919468000,-587.0,0.00011899,2]
[423196467,1779919468000,-902328.20290939,0.00012179,2]
[423196466,1779919468000,-1518.69740218,0.00012178,2]
[423196465,1779919468000,-150.0,0.00012178,2]
[423196464,1779919468000,-2945.83406362,0.00012178,2]
[423196462,1779919468000,-137195.8588,0.00012178,2]
[423196461,1779919468000,-706.40305457,0.00012177,3]
[423196460,1779919468000,-151.0,0.00012176,2]
[423196459,1779919468000,-166.49,0.00012166,2]
[423196468,1779919468000,-1073.6098,0.00012179,2]
[423196457,1779919468000,-33211.5749,0.00012079,2]
[423196456,1779919468000,-27178.0372,0.00012078,2]
[423196455,1779919468000,-4174.1682,0.00012078,2]
[423196449,1779919468000,-433.0,0.00011899,2]
[423196453,1779919468000,-2221.3,0.00011969,2]
[423196454,1779919468000,-18574.25707444,0.00012017,2]
[423196452,1779919468000,-152.0,0.00011955,2]
[423196451,1779919468000,-2351.0,0.000119,2]
[423196458,1779919468000,-171.58070749,0.00012117,2]
[423196470,1779919469000,-175.2751763,0.00012179,2]
[423196471,1779919469000,-254.88572446,0.0001218,2]
[423196469,1779919469000,-117193.5512736,0.00012179,2]
[423196481,1779919531000,-179.82944093,0.00012248,2]
[423196484,1779919553000,-381.75837706,0.00011865,2]
[423196491,1779919613000,155.5,7.913e-05,2]
[423196489,1779919613000,155.5,6.594e-05,2]
[423196490,1779919613000,155.5,7.254e-05,2]
[423196492,1779919614000,155.5,8.573e-05,2]
[423196493,1779919628000,-155.5,9.232e-05,2]
[423196494,1779919628000,-155.5,9.891e-05,2]
[423196495,1779919628000,-78.04941809,0.0001,2]
[423196497,1779919629000,-25.41307195,0.00010551,2]
[423196496,1779919629000,-357.02638248,0.0001,2]
[423196500,1779919652000,-238.87613095,0.00011064,2]
[423196499,1779919652000,-130.08692805,0.00010551,2]
[423196508,1779919747000,-155.5,0.0001121,2]
[423196513,1779919747000,-479.19749203,0.00011764,2]
[423196512,1779919747000,-215.18107251,0.00011764,2]
[423196510,1779919747000,-150.0,0.00011763,2]
[423196509,1779919747000,-300.0,0.00011763,2]
[423196511,1779919747000,-500.0,0.00011764,2]
[423196507,1779919747000,-772.83800686,0.00011065,2]
[423196506,1779919747000,-92.34015771,0.00011064,2]
[423196524,1779919753000,-288.62450031,0.00011764,2]
[423196523,1779919753000,-500.0,0.00011764,2]
[423196528,1779919753000,-500.0,0.00011764,2]
[423196526,1779919753000,-500.0,0.00011764,2]
[423196527,1779919753000,-500.0,0.00011764,2]
[423196525,1779919753000,-500.0,0.00011764,2]
[423196522,1779919753000,-500.0,0.00011764,2]
[423196537,1779919753000,-500.0,0.00011764,2]
[423196521,1779919753000,-500.0,0.00011764,2]
[423196518,1779919753000,-458.38589274,0.00011764,2]
[423196519,1779919753000,-154.55329877,0.00011764,2]
[423196515,1779919753000,-358.48051067,0.00011764,2]
[423196517,1779919753000,-500.0,0.00011764,2]
[423196516,1779919753000,-238.07234309,0.00011764,2]
[423196514,1779919753000,-20.80250797,0.00011764,2]
[423196529,1779919753000,-500.0,0.00011764,2]
[423196520,1779919753000,-500.0,0.00011764,2]
[423196530,1779919753000,-500.0,0.00011764,2]
[423196547,1779919753000,-500.0,0.00011764,2]
[423196531,1779919753000,-500.0,0.00011764,2]
[423196549,1779919753000,-488.15600006,0.00011765,2]
[423196548,1779919753000,-500.0,0.00011764,2]
[423196532,1779919753000,-500.0,0.00011764,2]
[423196545,1779919753000,-500.0,0.00011764,2]
[423196544,1779919753000,-500.0,0.00011764,2]
[423196543,1779919753000,-500.0,0.00011764,2]
[423196542,1779919753000,-500.0,0.00011764,2]
[423196546,1779919753000,-500.0,0.00011764,2]
[423196541,1779919753000,-500.0,0.00011764,2]
[423196539,1779919753000,-500.0,0.00011764,2]
[423196538,1779919753000,-500.0,0.00011764,2]
[423196536,1779919753000,-500.0,0.00011764,2]
[423196535,1779919753000,-500.0,0.00011764,2]
[423196534,1779919753000,-500.0,0.00011764,2]
[423196540,1779919753000,-500.0,0.00011764,2]
[423196533,1779919753000,-500.0,0.00011764,2]
[423196550,1779919755000,-2100.82366148,0.00011765,2]
[423196551,1779919763000,-21379.132155,0.00011765,2]
[423196554,1779919808000,169.415725,7.945e-05,2]
[423196565,1779919831000,-6884.26153958,0.00011665,2]
[423196566,1779919831000,-1200.0,0.00011764,2]
[423196563,1779919831000,-139.71799085,0.00011665,2]
[423196559,1779919831000,-346.276,0.000116,2]
[423196562,1779919831000,-273.05928984,0.000116,2]
[423196560,1779919831000,-1191.33537784,0.000116,2]
[423196561,1779919831000,-483.96697237,0.000116,2]
[423196567,1779919831000,-250.0,0.00011764,2]
[423196564,1779919831000,-486.90471485,0.00011665,2]
[423196568,1779919831000,-85402.91720302,0.00011765,2]
[423196572,1779919831000,-128906.64539433,0.00011765,2]
[423196574,1779919831000,-1497.0,0.00011765,2]
[423196571,1779919831000,-2000.0,0.00011765,2]
[423196573,1779919831000,-8317.64531558,0.00011765,2]
[423196569,1779919831000,-584.79955105,0.00011765,2]
[423196575,1779919831000,-1077.85484221,0.00011765,2]
[423196576,1779919831000,-2021.91916918,0.00011765,2]
[423196577,1779919831000,-2467.074667,0.00011765,2]
[423196578,1779919831000,-1313.69953,0.00011765,2]
[423196579,1779919831000,-320.124,0.00011765,2]
[423196581,1779919831000,-387.105,0.00011765,2]
[423196570,1779919831000,-159021.34742939,0.00011765,2]
[423196601,1779919837000,-181.1702484,0.00011762,2]
[423196602,1779919837000,-563.49928503,0.00011765,2]
[423196603,1779919837000,-580.29201335,0.00011765,2]
[423196608,1779919837000,-189152.21859579,0.00011765,2]
[423196606,1779919837000,-1732.42,0.00011765,2]
[423196607,1779919837000,-769.34,0.00011765,2]
[423196605,1779919837000,-4867.21105914,0.00011765,2]
[423196604,1779919837000,-1071.60360845,0.00011765,2]
[423196647,1779919839000,-406146.00150783,0.00011765,2]
[423196881,1779919843000,-36443.5421701,0.00011765,2]
[423196929,1779919845000,-155.5,0.00012529,2]
[423196927,1779919845000,-151.0,0.00012377,2]
[423196928,1779919845000,-151.0,0.00012377,2]
[423196926,1779919845000,-221.46,0.00012329,2]
[423196925,1779919845000,-330.0,0.00012247,3]
[423196919,1779919845000,-188.14260974,0.00011765,2]
[423196921,1779919845000,-250.0,0.00011786,2]
[423196937,1779919845000,-150.0,0.00012932,2]
[423196918,1779919845000,-712364.80384201,0.00011765,2]
[423196920,1779919845000,-16716.83136705,0.0001177,2]
[423196923,1779919845000,-155.5,0.0001187,2]
[423196924,1779919845000,-208.97895572,0.0001194,2]
[423196933,1779919845000,-200.0,0.00012792,2]
[423196922,1779919845000,-213385.81426204,0.00011865,2]
[423196931,1779919845000,-2000.0,0.00012589,2]
[423196939,1779919845000,-250.0,0.0001294,2]
[423196943,1779919845000,-500.0,0.00013085,2]
[423196944,1779919845000,-155.5,0.00013189,2]
[423196946,1779919845000,-2808.15,0.00013365,2]
[423196930,1779919845000,-200.0,0.0001254,2]
[423196941,1779919845000,-200.0,0.00013049,2]
[423196942,1779919845000,-215.46156935,0.00013051,2]
[423196945,1779919845000,-181.36,0.00013354,2]
[423196938,1779919845000,-1680.0,0.0001294,2]
[423196935,1779919845000,-285.0,0.00012916,2]
[423196934,1779919845000,-255.0,0.00012833,2]
[423196936,1779919845000,-200.0,0.0001292,2]
[423196932,1779919845000,-200.0,0.00012665,2]
[423196940,1779919845000,-2808.15,0.00013039,2]
[423196993,1779919846000,-166.66,0.00014109,2]
[423196987,1779919846000,-250.0,0.00014,2]
[423196986,1779919846000,-433.0,0.00013998,2]
[423196985,1779919846000,-166.66,0.00013904,2]
[423196991,1779919846000,-150.0,0.00014024,2]
[423196978,1779919846000,-442.2484019,0.00013698,2]
[423196984,1779919846000,-2000.0,0.00013847,2]
[423196988,1779919846000,-2808.15,0.00014017,2]
[423196981,1779919846000,-200.0,0.00013699,2]
[423196989,1779919846000,-270.58,0.00014024,2]
[423196980,1779919846000,-2500.0,0.00013699,2]
[423197003,1779919846000,-16716.83136696,0.00014791,2]
[423196982,1779919846000,-166.66,0.00013699,2]
[423197005,1779919846000,-241.04,0.00014905,88]
[423196996,1779919846000,-166.66,0.00014314,2]
[423196992,1779919846000,-1898.33,0.00014099,2]
[423196995,1779919846000,-2351.0,0.00014234,2]
[423196994,1779919846000,-166.49,0.00014173,2]
[423196997,1779919846000,-2808.15,0.00014343,2]
[423196998,1779919846000,-172.61,0.00014408,2]
[423196999,1779919846000,-166.66,0.00014417,2]
[423197000,1779919846000,-166.66,0.00014519,2]
[423197002,1779919846000,-166.66,0.00014725,2]
[423197001,1779919846000,-7510.88424527,0.00014697,2]
[423197006,1779919846000,-241.04,0.00014905,50]
[423197008,1779919846000,-150.0,0.00015093,2]
[423197018,1779919846000,-254.88572444,0.000168,2]
[423197011,1779919846000,-736.0,0.0001528,2]
[423197007,1779919846000,-175.6,0.00015068,2]
[423197004,1779919846000,-241.04,0.00014905,87]
[423196979,1779919846000,-500.0,0.00013698,2]
[423196983,1779919846000,-172.61,0.00013723,2]
[423196975,1779919846000,-500.0,0.00013698,2]
[423197015,1779919846000,-151.0,0.00016693,2]
[423196948,1779919846000,-5958.7836,0.00013671,2]
[423196947,1779919846000,-169.08,0.00013497,2]
[423196949,1779919846000,-2808.15,0.00013691,2]
[423196950,1779919846000,-500.0,0.00013698,2]
[423196952,1779919846000,-500.0,0.00013698,2]
[423196955,1779919846000,-500.0,0.00013698,2]
[423196962,1779919846000,-500.0,0.00013698,2]
[423196953,1779919846000,-500.0,0.00013698,2]
[423196951,1779919846000,-500.0,0.00013698,2]
[423196954,1779919846000,-500.0,0.00013698,2]
[423196957,1779919846000,-500.0,0.00013698,2]
[423196958,1779919846000,-500.0,0.00013698,2]
[423196960,1779919846000,-500.0,0.00013698,2]
[423196977,1779919846000,-500.0,0.00013698,2]
[423196961,1779919846000,-500.0,0.00013698,2]
[423196959,1779919846000,-500.0,0.00013698,2]
[423196963,1779919846000,-500.0,0.00013698,2]
[423196964,1779919846000,-500.0,0.00013698,2]
[423196966,1779919846000,-500.0,0.00013698,2]
[423196972,1779919846000,-500.0,0.00013698,2]
[423196969,1779919846000,-500.0,0.00013698,2]
[423196967,1779919846000,-500.0,0.00013698,2]
[423196971,1779919846000,-549.42,0.00013698,2]
[423196973,1779919846000,-500.0,0.00013698,2]
[423196968,1779919846000,-500.0,0.00013698,2]
[423196974,1779919846000,-500.0,0.00013698,2]
[423196970,1779919846000,-500.0,0.00013698,2]
[423196976,1779919846000,-500.0,0.00013698,2]
[423196965,1779919846000,-500.0,0.00013698,2]
[423196956,1779919846000,-500.0,0.00013698,2]
[423197013,1779919846000,-300.0,0.00016,2]
[423197065,1779919846000,-5000.0,0.00021918,2]
[423197010,1779919846000,-2000.0,0.00015106,2]
[423197067,1779919846000,-163.0,0.00022,2]
[423197085,1779919846000,-163.0,0.00024,2]
[423197081,1779919846000,-7510.88424527,0.00023794,2]
[423197083,1779919846000,-16716.83136696,0.00023853,2]
[423197079,1779919846000,-278.0,0.00023205,2]
[423197069,1779919846000,-162.54272136,0.00022,2]
[423197071,1779919846000,-204.58446656,0.00022,3]
[423197087,1779919846000,-575.77745022,0.00024111,2]
[423197098,1779919846000,-6063.0,0.00024402,2]
[423197089,1779919846000,-164.09,0.00024168,2]
[423197100,1779919846000,-931.0,0.00024402,2]
[423197104,1779919846000,-26149.415864,0.00024479,2]
[423197102,1779919846000,-708.6,0.00024465,2]
[423197093,1779919846000,-179.2,0.00024324,2]
[423197064,1779919846000,-500.0,0.00021917,2]
[423197091,1779919846000,-911.75,0.00024174,2]
[423197096,1779919846000,-3637.0,0.00024402,2]
[423197106,1779919846000,-1000.0,0.00024658,2]
[423197107,1779919846000,-179.0,0.00025,2]
[423197109,1779919846000,-171.19,0.00025,2]
[423197111,1779919846000,-476.17,0.00025143,2]
[423197113,1779919846000,-416.661435,0.0002521,14]
[423197115,1779919846000,-476.17,0.00025352,2]
[423197125,1779919846000,-911.75,0.00025786,2]
[423197126,1779919846000,-23777.55,0.00025786,2]
[423197128,1779919846000,-527.04633529,0.00025957,2]
[423197117,1779919846000,-330.0,0.00025548,6]
[423197121,1779919846000,-476.17,0.00025771,2]
[423197012,1779919846000,-2651.0,0.00015658,2]
[423197119,1779919846000,-476.17,0.00025562,2]
[423197095,1779919846000,-1225.0,0.00024402,2]
[423197061,1779919846000,-885.75,0.00021862,2]
[423197123,1779919846000,-506.85,0.00025786,2]
[423197076,1779919846000,-179.2,0.00022353,2]
[423197014,1779919846000,-179.2,0.00016438,2]
[423197009,1779919846000,-164.09,0.00015105,2]
[423197017,1779919846000,-166.66,0.00016796,2]
[423197016,1779919846000,-83450.45950644,0.00016696,2]
[423197019,1779919846000,-213767.5726391,0.00017006,2]
[423197021,1779919846000,-7510.88424527,0.0001773,2]
[423197031,1779919846000,-179.2,0.00020381,2]
[423197033,1779919846000,-17961.8,0.00020548,2]
[423197022,1779919846000,-16716.83136696,0.00017811,2]
[423197077,1779919846000,-163.0,0.00023,2]
[423197023,1779919846000,-350.0,0.00018,2]
[423197029,1779919846000,-156.0,0.0002,2]
[423197024,1779919846000,-164.09,0.00018126,2]
[423197026,1779919846000,-500.0,0.00018932,2]
[423197025,1779919846000,-179.2,0.0001841,2]
[423197020,1779919846000,-500.0,0.00017676,2]
[423197036,1779919846000,-7510.88424527,0.00020762,2]
[423197028,1779919846000,-163.0,0.0002,2]
[423197060,1779919846000,-275.640294,0.00021705,2]
[423197050,1779919846000,-1544.0,0.00021303,2]
[423197054,1779919846000,-254.88572444,0.0002142,2]
[423197056,1779919846000,-1750.0,0.00021609,5]
[423197058,1779919846000,-277.774291,0.00021705,2]
[423197048,1779919846000,-23777.55,0.00021273,2]
[423197052,1779919846000,-1544.0,0.00021303,2]
[423197042,1779919846000,-156.0,0.00021,2]
[423197037,1779919846000,-16716.83136696,0.00020832,2]
[423197044,1779919846000,-164.09,0.00021147,2]
[423197040,1779919846000,-163.0,0.00021,2]
[423197046,1779919846000,-506.85,0.00021273,2]
[423197073,1779919846000,-213767.5726391,0.00022148,2]
[423197218,1779919847000,-155.72,0.00027579,30]
[423197216,1779919847000,-154.56,0.00027576,30]
[423197226,1779919847000,-598.50926028,0.00027649,2]
[423197212,1779919847000,-598.50926028,0.00027448,2]
[423197220,1779919847000,-153.83,0.00027581,30]
[423197210,1779919847000,-598.50926028,0.00027403,2]
[423197199,1779919847000,-1225.0,0.00027402,2]
[423197204,1779919847000,-3343.761,0.00027402,2]
[423197208,1779919847000,-931.0,0.00027402,2]
[423197206,1779919847000,-6063.0,0.00027402,2]
[423197198,1779919847000,-1293.53,0.000274,14]
[423197195,1779919847000,-167.37,0.000274,7]
[423197214,1779919847000,-150.0,0.00027521,2]
[423197228,1779919847000,-598.50926028,0.00027676,2]
[423197253,1779919847000,-598.50926028,0.00028162,2]
[423197222,1779919847000,-159.72,0.00027605,30]
[423197231,1779919847000,-598.50926028,0.00027761,2]
[423197232,1779919847000,-598.50926028,0.00027783,2]
[423197235,1779919847000,-598.50926028,0.00027786,2]
[423197237,1779919847000,-598.50926028,0.0002788,2]
[423197241,1779919847000,-598.50926028,0.00027937,2]
[423197239,1779919847000,-598.50926028,0.00027923,2]
[423197247,1779919847000,-598.50926028,0.00028071,2]
[423197245,1779919847000,-159.72,0.0002807,7]
[423197249,1779919847000,-162.31,0.00028073,7]
[423197251,1779919847000,-598.50926028,0.00028098,2]
[423197243,1779919847000,-598.50926028,0.00028012,2]
[423197190,1779919847000,-598.50926028,0.00027383,2]
[423197255,1779919847000,-598.50926028,0.00028163,2]
[423197224,1779919847000,-162.31,0.0002761,30]
[423197191,1779919847000,-7436.77,0.00027397,10]
[423197154,1779919847000,-245.129,0.00027133,2]
[423197184,1779919847000,-171.19,0.0002728,2]
[423197257,1779919847000,-598.50926028,0.00028176,2]
[423197132,1779919847000,-500.0,0.00026,2]
[423197131,1779919847000,-476.17,0.00025981,2]
[423197136,1779919847000,-476.17,0.0002619,2]
[423197134,1779919847000,-254.88572444,0.0002604,2]
[423197138,1779919847000,-179.2,0.00026296,2]
[423197142,1779919847000,-7510.88424527,0.00026827,2]
[423197146,1779919847000,-150.0,0.00027133,2]
[423197144,1779919847000,-16716.83136696,0.00026873,2]
[423197156,1779919847000,-166.454,0.00027133,2]
[423197148,1779919847000,-220.0,0.00027133,2]
[423197150,1779919847000,-230.786,0.00027133,2]
[423197161,1779919847000,-185.0,0.00027133,2]
[423197159,1779919847000,-150.0,0.00027133,2]
[423197152,1779919847000,-250.0,0.00027133,2]
[423197157,1779919847000,-250.0,0.00027133,2]
[423197167,1779919847000,-525.0,0.00027133,2]
[423197163,1779919847000,-3548.0,0.00027133,2]
[423197165,1779919847000,-928.0,0.00027133,2]
[423197169,1779919847000,-1272.0,0.00027133,2]
[423197173,1779919847000,-164.09,0.00027189,2]
[423197171,1779919847000,-598.50926028,0.0002717,2]
[423197180,1779919847000,-319.39816576,0.00027259,2]
[423197188,1779919847000,-598.50926028,0.00027359,2]
[423197182,1779919847000,-598.50926028,0.00027277,2]
[423197179,1779919847000,-11639.73365758,0.00027259,2]
[423197175,1779919847000,-177.15,0.00027204,2]
[423197177,1779919847000,-5834.7233495,0.00027223,2]
[423197186,1779919847000,-213767.5726391,0.0002729,2]
[423197193,1779919847000,-166.57,0.000274,7]
[423197261,1779919847000,-598.50926028,0.00028408,2]
[423197140,1779919847000,-476.21732886,0.000264,2]
[423197263,1779919847000,-416.661435,0.00028499,14]
[423197333,1779919847000,-159.74,0.00029,30]
[423197335,1779919847000,-150.44390752,0.000295,37]
[423197339,1779919847000,-151.16793296,0.000295,37]
[423197343,1779919847000,-151.32469507,0.000295,37]
[423197341,1779919847000,-151.16793296,0.000295,37]
[423197347,1779919847000,-151.42249481,0.000295,37]
[423197337,1779919847000,-150.44390752,0.000295,37]
[423197345,1779919847000,-151.32469507,0.000295,37]
[423197349,1779919847000,-151.42249481,0.000295,37]
[423197359,1779919847000,-153.51969951,0.00029687,30]
[423197353,1779919847000,-151.47968644,0.000295,37]
[423197351,1779919847000,-151.47968644,0.000295,37]
[423197375,1779919847000,-150.0,0.00030133,2]
[423197354,1779919847000,-578.20924308,0.00029532,2]
[423197358,1779919847000,-1428.38747117,0.00029532,2]
[423197356,1779919847000,-721.12765534,0.00029532,2]
[423197362,1779919847000,-163.0,0.00029687,30]
[423197365,1779919847000,-1000.0,0.000297,7]
[423197369,1779919847000,-16716.83136696,0.00029894,2]
[423197363,1779919847000,-156.0,0.00029687,30]
[423197367,1779919847000,-7510.88424527,0.00029859,2]
[423197371,1779919847000,-342.18940204,0.00029924,2]
[423197373,1779919847000,-223.42620592,0.0003008,2]
[423197379,1779919847000,-928.0,0.00030133,2]
[423197383,1779919847000,-1272.0,0.00030133,2]
[423197387,1779919847000,-164.09,0.0003021,2]
[423197385,1779919847000,-160.463535,0.000302,2]
[423197381,1779919847000,-525.0,0.00030133,2]
[423197265,1779919847000,-598.50926028,0.00028505,2]
[423197331,1779919847000,-162.31,0.00029,30]
[423197329,1779919847000,-431.81,0.00029,2]
[423197377,1779919847000,-3548.0,0.00030133,2]